fUSD/lending_fUSD_20240203
["ID","MTS","AMOUNT","RATE_DAILY","PERIOD"]
[313222780,1706967088653,-273.28213271,0.00044,4]
[313222781,1706967088663,-1899.749,0.00044,9]
[313222782,1706967088675,-2800.0,0.00044,3]
[313222783,1706967088686,-152.57148147,0.00044034,22]
[313222784,1706967088695,-150.07996762,0.00044053,30]
[313222785,1706967088704,-1995.02,0.0004408,2]
[313222786,1706967088713,-332.65905507,0.00044118,4]
[313222787,1706967088723,-150.07996762,0.00044121,30]
[313222788,1706967088732,-205.0,0.000442,35]
[313222789,1706967088741,-151.03304887,0.000442,2]
[313222790,1706967088750,-183.09987742,0.00044222,4]
[313222791,1706967088759,-236.75454593,0.00044222,4]
[313222792,1706967088768,-150.0,0.0004434,2]
[313222793,1706967088777,-158.70021786,0.00044368,30]
[313222794,1706967088786,-506.34406,0.00044384,14]
[313222795,1706967088795,-954.44873093,0.00044496,30]
[313222796,1706967088805,-155.55,0.0004451,2]
[313222797,1706967088814,-5000.0,0.00044617,4]
[313222798,1706967088823,-679.97359128,0.0004465,16]
[313222799,1706967088832,-152.57148147,0.00044656,24]
[313222800,1706967088841,-223.0,0.000447,7]
[313222801,1706967088851,-153.82890557,0.00044725,30]
[313222802,1706967088861,-5896.52203457,0.000448,30]
[313222803,1706967088871,-1460.390985,0.0004484,20]
[313222804,1706967088881,-1000.0,0.0004486,20]
[313222805,1706967088891,-1000.0,0.0004488,20]
[313222806,1706967088900,-7647.31876799,0.00044884,5]
[313222807,1706967088909,-183.09987742,0.00044885,4]
[313222808,1706967088919,-236.75454593,0.00044885,4]
[313222809,1706967088928,-2223.57169962,0.000449,30]
[313222810,1706967088937,-2195.0,0.000449,30]
[313222811,1706967088947,-1000.0,0.000449,20]
[313222812,1706967088956,-1000.0,0.0004492,20]
[313222813,1706967088966,-954.44873093,0.0004494,30]
[313222814,1706967088974,-1000.0,0.0004494,20]
[313222815,1706967088984,-1000.0,0.0004496,20]
[313222816,1706967088993,-190.68561975,0.0004498,5]
[313222817,1706967089002,-1000.0,0.0004498,20]
[313222818,1706967089011,-5000.0,0.00044986,4]
[313222819,1706967089020,-153.82890557,0.00044995,30]
[313222820,1706967089029,-100000.0,0.00045,35]
[313222821,1706967089038,-150.0,0.00045,2]
[313222822,1706967089047,-809.62539409,0.00045,2]
[313222823,1706967089056,-150.20109474,0.00045,120]
[313222824,1706967089065,-1000.0,0.00045,120]
[313222825,1706967089074,-2000.0,0.00045,2]
[313222826,1706967089083,-2663.0,0.00045,30]
[313222827,1706967089092,-224.40311222,0.00045,120]
[313222828,1706967089101,-6283.37,0.00045,7]
[313222829,1706967089110,-9611.54,0.00045,7]
[313222830,1706967089118,-1576.87990098,0.00045,4]
[313222831,1706967089127,-179.11236836,0.00045,3]
[313222832,1706967089136,-1898.95727035,0.00045,3]
[313222833,1706967089145,-1331.34,0.00045,7]
[313222834,1706967089154,-39223.64,0.00045,7]
[313222835,1706967089163,-195937.36142098,0.00045,45]
[313222836,1706967089172,-241.00970376,0.00045,30]
[313222837,1706967089181,-174.15172782,0.00045,4]
[313222838,1706967089190,-238.88399056,0.00045,2]
[313222839,1706967089199,-4812.3989192,0.00045,17]
[313222840,1706967089209,-5008.0,0.00045,2]
[313222841,1706967089217,-594.61,0.00045,7]
[313222842,1706967089226,-500.0,0.00045,7]
[313222843,1706967089235,-447.97092235,0.00045,4]
[313222844,1706967089244,-291.06179382,0.00045,90]
[313222845,1706967089253,-2139.852,0.00045,3]
[313222846,1706967089262,-1000.0,0.00045,3]
[313222847,1706967089272,-1732.900762,0.00045,17]
[313222848,1706967089281,-1175.7969826,0.00045,2]
[313222849,1706967089290,-1000.0,0.00045,20]
[313222850,1706967089299,-202.0,0.00045054,4]
[313222851,1706967089308,-900.0,0.00045054,6]
[313222852,1706967089317,-900.0,0.00045054,6]
[313222853,1706967089326,-900.0,0.00045054,6]
[313222854,1706967089335,-900.0,0.00045054,6]
[313222855,1706967089344,-900.0,0.00045054,6]
[313222856,1706967089353,-900.0,0.00045054,6]
[313222857,1706967089362,-900.0,0.00045054,6]
[313222858,1706967089371,-900.0,0.00045054,6]
[313222859,1706967089380,-900.0,0.00045054,6]
[313222860,1706967089389,-900.0,0.00045054,6]
[313222861,1706967089399,-900.0,0.00045054,6]
[313222862,1706967089408,-900.0,0.00045054,6]
[313222863,1706967089417,-900.0,0.00045054,6]
[313222864,1706967089427,-900.0,0.00045054,6]
[313222865,1706967089436,-900.0,0.00045054,6]
[313222866,1706967089446,-900.0,0.00045054,6]
[313222867,1706967089455,-900.0,0.00045054,6]
[313222868,1706967089464,-900.0,0.00045054,6]
[313222869,1706967089475,-900.0,0.00045054,6]
[313222870,1706967089485,-900.0,0.00045054,6]
[313222871,1706967089494,-900.0,0.00045054,6]
[313222872,1706967089502,-900.0,0.00045054,6]
[313222873,1706967089512,-900.0,0.00045054,6]
[313222874,1706967089522,-900.0,0.00045054,6]
[313222875,1706967089531,-900.0,0.00045054,6]
[313222876,1706967089541,-900.0,0.00045054,6]
[313222877,1706967089551,-900.0,0.00045054,6]
[313222878,1706967089561,-900.0,0.00045054,6]
[313222879,1706967089570,-900.0,0.00045054,6]
[313222880,1706967089579,-900.0,0.00045054,6]
[313222881,1706967089589,-900.0,0.00045054,6]
[313222882,1706967089598,-900.0,0.00045054,6]
[313222883,1706967089607,-900.0,0.00045054,6]
[313222884,1706967089616,-900.0,0.00045054,6]
[313222885,1706967089625,-900.0,0.00045054,6]
[313222886,1706967089635,-900.0,0.00045054,6]
[313222887,1706967089644,-900.0,0.00045054,6]
[313222888,1706967089654,-900.0,0.00045054,6]
[313222889,1706967089665,-900.0,0.00045054,6]
[313222890,1706967089674,-900.0,0.00045054,6]
[313222891,1706967089684,-900.0,0.00045054,6]
[313222892,1706967089693,-900.0,0.00045054,6]
[313222893,1706967089703,-900.0,0.00045054,6]
[313222894,1706967089713,-900.0,0.00045054,6]
[313222895,1706967089723,-900.0,0.00045054,6]
[313222896,1706967089732,-900.0,0.00045054,6]
[313222897,1706967089742,-900.0,0.00045054,6]
[313222898,1706967089751,-900.0,0.00045054,6]
[313222899,1706967089761,-900.0,0.00045054,6]
[313222900,1706967089771,-900.0,0.00045054,6]
[313222901,1706967089780,-900.0,0.00045054,6]
[313222902,1706967089790,-900.0,0.00045054,6]
[313222903,1706967089799,-900.0,0.00045054,6]
[313222904,1706967089808,-900.0,0.00045054,6]
[313222905,1706967089818,-900.0,0.00045054,6]
[313222906,1706967089828,-900.0,0.00045054,6]
[313222907,1706967089837,-900.0,0.00045054,6]
[313222908,1706967089846,-900.0,0.00045054,6]
[313222909,1706967089855,-900.0,0.00045054,6]
[313222910,1706967089865,-900.0,0.00045054,6]
[313222911,1706967089874,-900.0,0.00045054,6]
[313222912,1706967089883,-900.0,0.00045054,6]
[313222913,1706967089893,-900.0,0.00045054,6]
[313222914,1706967089903,-900.0,0.00045054,6]
[313222915,1706967089913,-900.0,0.00045054,6]
[313222916,1706967089922,-900.0,0.00045054,6]
[313222917,1706967089932,-900.0,0.00045054,6]
[313222918,1706967089942,-900.0,0.00045054,6]
[313222919,1706967089952,-900.0,0.00045054,6]
[313222920,1706967089962,-373.0,0.00045054,6]
[313222921,1706967089972,-500.0,0.00045054,4]
[313222922,1706967089982,-500.0,0.00045054,4]
[313222923,1706967089991,-500.0,0.00045054,4]
[313222924,1706967090001,-500.0,0.00045054,4]
[313222925,1706967090010,-500.0,0.00045054,4]
[313222926,1706967090019,-500.0,0.00045054,4]
[313222927,1706967090029,-500.0,0.00045054,4]
[313222928,1706967090038,-500.0,0.00045054,4]
[313222929,1706967090048,-500.0,0.00045054,4]
[313222930,1706967090057,-500.0,0.00045054,4]
[313222931,1706967090066,-500.0,0.00045054,4]
[313222932,1706967090076,-500.0,0.00045054,4]
[313222933,1706967090085,-500.0,0.00045054,4]
[313222934,1706967090095,-500.0,0.00045054,4]
[313222935,1706967090202,-500.0,0.00045054,4]
[313222936,1706967090212,-500.0,0.00045054,4]
[313222937,1706967090221,-500.0,0.00045054,4]
[313222938,1706967090231,-500.0,0.00045054,4]
[313222939,1706967090241,-500.0,0.00045054,4]
[313222940,1706967090250,-500.0,0.00045054,4]
[313222941,1706967090259,-500.0,0.00045054,4]
[313222942,1706967090269,-500.0,0.00045054,4]
[313222943,1706967090278,-445.6362,0.0004514,30]
[313222944,1706967090287,-1000.0,0.00045149,2]
[313222945,1706967090296,-1500.0,0.000452,2]
[313222946,1706967090306,-152.22,0.000452,5]
[313222947,1706967090316,-152.22,0.000452,5]
[313222948,1706967090325,-152.22,0.000452,5]
[313222949,1706967090334,-152.22,0.000452,5]
[313222950,1706967090344,-152.22,0.000452,5]
[313222951,1706967090353,-152.22,0.000452,5]
[313222952,1706967090363,-152.22,0.000452,5]
[313222953,1706967090372,-152.22,0.000452,5]
[313222954,1706967090382,-152.22,0.000452,5]
[313222955,1706967090392,-152.22,0.000452,5]
[313222956,1706967090402,-152.22,0.000452,5]
[313222957,1706967090411,-152.22,0.000452,5]
[313222958,1706967090421,-152.22,0.000452,5]
[313222959,1706967090430,-152.22,0.000452,5]
[313222960,1706967090440,-152.22,0.000452,5]
[313222961,1706967090450,-152.22,0.000452,5]
[313222962,1706967090460,-152.22,0.000452,5]
[313222963,1706967090471,-152.22,0.000452,5]
[313222964,1706967090482,-4066.0,0.000452,2]
[313222965,1706967090492,-355.51,0.00045205,2]
[313222966,1706967090503,-506.34406,0.00045205,14]
[313222967,1706967090512,-155.0,0.00045207,2]
[313222968,1706967090522,-954.44873093,0.00045243,30]
[313222969,1706967090532,-152.57148147,0.00045278,26]
[313222970,1706967090542,-158.02798028,0.00045289,30]
[313222971,1706967090552,-150.0,0.00045422,2]
[313222972,1706967090562,-299.27779395,0.00045492,30]
[313222973,1706967090572,-954.44873093,0.00045493,30]
[313222974,1706967090581,-299.27779395,0.00045497,30]
[313222975,1706967090591,-223.0,0.000455,30]
[313222976,1706967090601,-183.09987742,0.00045549,5]
[313222977,1706967090611,-236.75454593,0.00045549,5]
[313222978,1706967090620,-1000.0,0.000456,20]
[313222979,1706967090630,-1000.0,0.000456,20]
[313222980,1706967090639,-1000.0,0.000456,20]
[313222981,1706967090649,-1000.0,0.000456,20]
[313222982,1706967090659,-1000.0,0.000456,20]
[313222983,1706967090668,-1000.0,0.000456,20]
[313222984,1706967090678,-1000.0,0.000456,20]
[313222985,1706967090688,-1000.0,0.000456,20]
[313222986,1706967090699,-1000.0,0.000456,20]
[313222987,1706967090709,-1000.0,0.000456,20]
[313222988,1706967090718,-1000.0,0.000456,20]
[313222989,1706967090728,-1000.0,0.000456,20]
[313222990,1706967090738,-1000.0,0.000456,20]
[313222991,1706967090747,-1000.0,0.000456,20]
[313222992,1706967090757,-1000.0,0.000456,20]
[313222993,1706967090766,-1000.0,0.000456,20]
[313222994,1706967090775,-1000.0,0.000456,20]
[313222995,1706967090785,-1000.0,0.000456,20]
[313222996,1706967090794,-1000.0,0.000456,20]
[313222997,1706967090804,-1000.0,0.000456,20]
[313222998,1706967090814,-1000.0,0.000456,20]
[313222999,1706967090823,-1000.0,0.000456,20]
[313223000,1706967090832,-1000.0,0.000456,20]
[313223001,1706967090842,-1000.0,0.000456,20]
[313223002,1706967090852,-1000.0,0.000456,20]
[313223003,1706967090861,-1000.0,0.000456,20]
[313223004,1706967090871,-1000.0,0.000456,20]
[313223005,1706967090881,-1000.0,0.000456,20]
[313223006,1706967090890,-1000.0,0.000456,20]
[313223007,1706967090899,-1000.0,0.000456,20]
[313223008,1706967090909,-176.35757237,0.000456,20]
[313223009,1706967090918,-299.27779395,0.00045668,30]
[313223010,1706967090927,-160.0,0.00045671,90]
[313223011,1706967090936,-1000.0,0.000457,19]
[313223012,1706967090948,-1995.02,0.00045715,2]
[313223013,1706967090957,-153.82890557,0.00045715,30]
[313223014,1706967090966,-5000.0,0.00045728,4]
[313223015,1706967090976,-150.07996769,0.00045751,30]
[313223016,1706967090986,-954.44873093,0.00045754,30]
[313223017,1706967090995,-12000.0,0.00045756,8]
[313223018,1706967091004,-299.27779395,0.00045796,30]
[313223019,1706967091014,-159.0,0.000458,30]
[313223020,1706967091023,-489.73668542,0.0004588,100]
[313223021,1706967091032,-666.0,0.0004589,2]
[313223022,1706967091041,-806.7,0.0004589,2]
[313223023,1706967091050,-1888.14,0.0004589,2]
[313223024,1706967091059,-513.67,0.0004589,2]
[313223025,1706967091068,-308.2,0.000459,2]
[313223026,1706967091077,-380.0,0.000459,2]
[313223027,1706967091086,-380.0,0.000459,2]
[313223028,1706967091095,-380.0,0.000459,2]
[313223029,1706967091104,-380.0,0.000459,2]
[313223030,1706967091114,-380.0,0.000459,2]
[313223031,1706967091123,-380.0,0.000459,2]
[313223032,1706967091133,-380.0,0.000459,2]
[313223033,1706967091142,-381.72,0.000459,2]
[313223034,1706967091152,-152.57148147,0.000459,29]
[313223035,1706967091161,-689.36,0.00045999,2]
[313223036,1706967091171,-100000.0,0.00046,36]
[313223037,1706967091181,-500.0,0.00046,2]
[313223038,1706967091190,-154.0472836,0.00046,45]
[313223039,1706967091201,-2000.0,0.00046,2]
[313223040,1706967091211,-309.62038116,0.00046,30]
[313223041,1706967091221,-6283.37,0.00046,7]
[313223042,1706967091230,-9611.54,0.00046,7]
[313223043,1706967091239,-1331.34,0.00046,7]
[313223044,1706967091249,-39223.64,0.00046,7]
[313223045,1706967091258,-307.27285785,0.00046,3]
[313223046,1706967091267,-2359.258,0.00046,4]
[313223047,1706967091276,-2850.0,0.00046,3]
[313223048,1706967091285,-1175.7969826,0.00046,5]
[313223049,1706967091294,-2000.0,0.00046,16]
[313223050,1706967091304,-506.34406,0.00046027,14]
[313223051,1706967091313,-4007.7,0.000461,5]
[313223052,1706967091322,-4007.7,0.000461,5]
[313223053,1706967091331,-4007.7,0.000461,5]
[313223054,1706967091341,-4007.7,0.000461,5]
[313223055,1706967091350,-4007.7,0.000461,5]
[313223056,1706967091359,-4007.7,0.000461,5]
[313223057,1706967091369,-4007.7,0.000461,5]
[313223058,1706967091379,-4007.7,0.000461,5]
[313223059,1706967091388,-4007.7,0.000461,5]
[313223060,1706967091398,-4007.7,0.000461,5]
[313223061,1706967091407,-4007.7,0.000461,5]
[313223062,1706967091416,-4007.7,0.000461,5]
[313223063,1706967091427,-4007.7,0.000461,5]
[313223064,1706967091436,-4007.7,0.000461,5]
[313223065,1706967091446,-4007.7,0.000461,5]
[313223066,1706967091455,-4007.7,0.000461,5]
[313223067,1706967091465,-4007.7,0.000461,5]
[313223068,1706967091475,-4007.7,0.000461,5]
[313223069,1706967091485,-4007.7,0.000461,5]
[313223070,1706967091495,-4007.7,0.000461,5]
[313223071,1706967091505,-207.0,0.00046175,38]
[313223072,1706967091515,-183.09987742,0.00046213,6]
[313223073,1706967091526,-236.75454593,0.00046213,6]
[313223074,1706967091535,-158.02798028,0.00046298,30]
[313223075,1706967091545,-223.0,0.000463,30]
[313223076,1706967091556,-1000.0,0.000464,21]
[313223077,1706967091566,-181.81261525,0.00046446,30]
[313223078,1706967091576,-7647.31876799,0.00046463,5]
[313223079,1706967091585,-158.02798028,0.00046467,30]
[313223080,1706967091595,-150.0,0.00046503,2]
[313223081,1706967091604,-299.27779395,0.00046523,30]
[313223082,1706967091614,-256.0,0.00046532,2]
[313223083,1706967091624,-178.0,0.00046532,2]
[313223084,1706967091634,-1000.0,0.00046575,30]
[313223085,1706967091644,-1000.0,0.00046575,30]
[313223086,1706967091654,-1000.0,0.00046575,30]
[313223087,1706967091663,-512.36289983,0.00046575,30]
[313223088,1706967091673,-500.0,0.00046575,7]
[313223089,1706967091682,-155.0,0.00046577,2]
[313223090,1706967091691,-159.0,0.000466,30]
[313223091,1706967091701,-4066.465753,0.000466,2]
[313223092,1706967091711,-562.47297186,0.000466,2]
[313223093,1706967091721,-821.84869516,0.00046704,60]
[313223094,1706967091730,-15082.342,0.0004678,5]
[313223095,1706967091740,-205.0,0.00046833,39]
[313223096,1706967091836,-5000.0,0.00046839,4]
[313223097,1706967091846,-403.35,0.00046849,2]
[313223098,1706967091856,-506.34406,0.00046849,14]
[313223099,1706967091865,-183.09987742,0.00046876,6]
[313223100,1706967091874,-236.75454593,0.00046876,6]
[313223101,1706967091884,-100000.0,0.00047,37]
[313223102,1706967091893,-1018.0,0.00047,17]
[313223103,1706967091902,-199.57,0.00047,120]
[313223104,1706967091912,-2000.0,0.00047,2]
[313223105,1706967091921,-6283.37,0.00047,7]
[313223106,1706967091930,-9611.54,0.00047,7]
[313223107,1706967091938,-1331.34,0.00047,7]
[313223108,1706967091948,-39223.64,0.00047,7]
[313223109,1706967091957,-763.784,0.00047,30]
[313223110,1706967091966,-277.18166154,0.00047,30]
[313223111,1706967091976,-2052.12,0.00047,4]
[313223112,1706967091985,-1000.0,0.00047,30]
[313223113,1706967091994,-3205.38041331,0.00047,47]
[313223114,1706967092003,-1175.7969826,0.00047,8]
[313223115,1706967092012,-154.13786525,0.00047003,30]
[313223116,1706967092022,-151.03304887,0.00047016,2]
[313223117,1706967092031,-223.0,0.000472,30]
[313223118,1706967092041,-1000.0,0.000472,23]
[313223119,1706967092050,-1995.02,0.0004735,2]
[313223120,1706967092059,-159.0,0.000474,30]
[313223121,1706967092070,-15560.9968,0.0004744,5]
[313223122,1706967092079,-500.0,0.00047489,7]
[313223123,1706967092091,-661.10717264,0.000475,10]
[313223124,1706967092100,-169.91998726,0.000475,2]
[313223125,1706967092110,-160.077466,0.000475,18]
[313223126,1706967092121,-183.09987742,0.0004754,7]
[313223127,1706967092130,-236.75454593,0.0004754,7]
[313223128,1706967092140,-1881.75,0.00047572,15]
[313223129,1706967092150,-155.55,0.00047583,2]
[313223130,1706967092159,-150.0,0.00047585,2]
[313223131,1706967092169,-506.34406,0.00047671,14]
[313223132,1706967092178,-187.8257058,0.0004768,120]
[313223133,1706967092188,-5122.38659256,0.00047716,23]
[313223134,1706967092197,-155.06019114,0.00047717,30]
[313223135,1706967092206,-954.44873093,0.0004774,30]
[313223136,1706967092216,-679.97359128,0.00047786,19]
[313223137,1706967092225,-158.02798028,0.00047817,30]
[313223138,1706967092235,-672.05742878,0.00047945,2]
[313223139,1706967092244,-500.0,0.00047945,30]
[313223140,1706967092254,-155.0,0.00047947,2]
[313223141,1706967092263,-5000.0,0.00047951,4]
[313223142,1706967092272,-3082.58068121,0.00047999,60]
[313223143,1706967092282,-100000.0,0.00048,38]
[313223144,1706967092291,-1280.32221929,0.00048,14]
[313223145,1706967092301,-320.66919517,0.00048,30]
[313223146,1706967092310,-800.0,0.00048,4]
[313223147,1706967092320,-2000.0,0.00048,2]
[313223148,1706967092329,-164081.61799387,0.00048,120]
[313223149,1706967092383,11443.03383028,0.00021745,2]
[313223150,1706967092443,1101.27007292,0.00021854,2]
[313223151,1706967092494,260.96136788,0.00021854,2]
[313223152,1706967092524,198.55528335,0.00021854,2]
[313223153,1706967092588,536.00973547,0.00020514,2]
[313223154,1706967092685,226.54843448,0.00021854,2]
[313223155,1706967092754,283.69730262,0.00021854,2]
[313223156,1706967092804,209.71304391,0.00021854,2]
[313223157,1706967092913,155.0,0.00021854,2]
[313223158,1706967092951,-500.0,0.00022538,2]
[313223159,1706967092961,-162.44,0.00022565,2]
[313223160,1706967093037,8342.29,0.00021881,2]
[313223161,1706967093067,404.33916482,0.00021198,2]
[313223162,1706967093102,267.57153281,0.00021854,2]
[313223163,1706967093176,534.95751023,0.00021854,2]
[313223164,1706967093253,257.89812534,0.00021854,2]
[313223165,1706967093282,2605.00055755,0.00021744,2]
[313223166,1706967093311,500.0,0.00021854,2]
[313223167,1706967093983,-22524.55016114,0.00022565,2]
[313223168,1706967093993,-216.22962887,0.00022792,2]
[313223169,1706967094003,-525.57087113,0.00022792,2]
[313223170,1706967094012,-203.35251676,0.00022792,2]
[313223171,1706967094021,-698.97199421,0.00022793,2]
[313223172,1706967094030,-2152.24592062,0.00022793,2]
[313223173,1706967094040,-33458.04314514,0.00022793,2]
[313223174,1706967094049,-3470.70284634,0.00022794,2]
[313223175,1706967094058,-699.97079885,0.00022794,2]
[313223176,1706967094070,-526.8749177,0.00022794,2]
[313223177,1706967094079,-1368.01722882,0.00022794,2]
[313223178,1706967094088,-266.25668129,0.00022794,2]
[313223179,1706967094098,-3339.07998157,0.00022794,2]
[313223180,1706967094107,-761.41703721,0.00022794,2]
[313223181,1706967094116,-2451.99965961,0.00022886,2]
[313223182,1706967094125,-155.78896585,0.000229,2]
[313223183,1706967094134,-1650.94324633,0.000229,2]
[313223184,1706967094143,-313.66657883,0.00022983,2]
[313223185,1706967094152,-500.0,0.00023343,2]
[313223186,1706967094161,-500.0,0.00023617,2]
[313223187,1706967094170,-500.0,0.00023891,2]
[313223188,1706967094180,-500.0,0.00024165,2]
[313223189,1706967094189,-500.0,0.00024165,2]
[313223190,1706967094200,-18134.1,0.00024384,2]
[313223191,1706967094209,-500.0,0.00024439,2]
[313223192,1706967094218,-500.0,0.00024439,2]
[313223193,1706967094228,-500.0,0.00024713,2]
[313223194,1706967094237,-500.0,0.00024713,2]
[313223195,1706967094246,-500.0,0.00024987,2]
[313223196,1706967094255,-500.0,0.00024987,2]
[313223197,1706967094264,-500.0,0.00025261,2]
[313223198,1706967094274,-500.0,0.00025261,2]
[313223199,1706967094283,-500.0,0.00025535,2]
[313223200,1706967094291,-500.0,0.00025535,2]
[313223201,1706967094300,-500.0,0.00025809,2]
[313223202,1706967094309,-500.0,0.00025809,2]
[313223203,1706967094318,-500.0,0.00026083,2]
[313223204,1706967094327,-500.0,0.00026083,2]
[313223205,1706967094336,-500.0,0.00026356,2]
[313223206,1706967094346,-500.0,0.00026356,2]
[313223207,1706967094355,-500.0,0.0002663,2]
[313223208,1706967094364,-500.0,0.0002663,2]
[313223209,1706967094374,-500.0,0.00026904,2]
[313223210,1706967094383,-500.0,0.00026904,2]
[313223211,1706967094392,-500.0,0.00027178,2]
[313223212,1706967094402,-500.0,0.00027178,2]
[313223213,1706967094411,-500.0,0.00027452,2]
[313223214,1706967094421,-500.0,0.00027452,2]
[313223215,1706967094430,-500.0,0.00027726,2]
[313223216,1706967094440,-453.57,0.00027726,2]
[313223217,1706967094450,-500.0,0.00028,2]
[313223218,1706967094460,-594.99577652,0.00028274,2]
[313223219,1706967094470,-18134.1,0.00035616,2]
[313223220,1706967094484,-18134.1,0.00046849,120]
[313223221,1706967094493,-835918.38200613,0.00048,120]
[313223222,1706967094502,-6283.37,0.00048,7]
[313223223,1706967094512,-9611.54,0.00048,7]
[313223224,1706967094522,-1331.34,0.00048,7]
[313223225,1706967094531,-39223.64,0.00048,7]
[313223226,1706967094540,-158.0,0.00048,2]
[313223227,1706967094551,-215.80425585,0.00048,14]
[313223228,1706967094560,-1333408.33242585,0.00048,4]
[313223229,1706967094575,-61042.62705977,0.00048,4]
[313223230,1706967094595,-30186.40855805,0.00048,4]
[313223231,1706967094607,-1125.387,0.00048,4]
[313223232,1706967094622,-5600.4915964,0.00048,4]
[313223233,1706967094634,-1247.199999,0.00048,4]
[313223234,1706967094670,362.29204181,0.00021854,2]
[313223235,1706967094701,810.08156095,0.00021854,2]
[313223236,1706967094737,207.80839755,0.00021854,2]
[313223237,1706967094766,226.35508552,0.00021854,2]
[313223238,1706967094813,2483.67553854,0.00022109,2]
[313223239,1706967094865,3200.29032374,0.00021881,2]
[313223240,1706967094897,562.45073141,0.00020286,2]
[313223241,1706967094973,2333.56634166,0.00021854,2]
[313223242,1706967095067,643.67162228,0.00021854,2]
[313223243,1706967095100,7809.68265591,0.00020513,2]
[313223244,1706967095190,624.00034444,0.00022063,2]
[313223245,1706967095224,683.38245202,0.00021854,2]
[313223246,1706967095330,858.9962809,0.00021854,2]
[313223247,1706967095432,307.49167908,0.0002,2]
[313223248,1706967095477,421.31055683,0.00022063,2]
[313223249,1706967095557,19030.07079282,0.00021854,2]
[313223250,1706967095585,285.16657938,0.00021854,2]
[313223251,1706967095644,2511.0,0.00021,2]
[313223252,1706967095789,296.3448738,0.00021744,2]
[313223253,1706967096024,175.48,0.0002208,2]
[313223254,1706967096054,175.48,0.0002214,2]
[313223255,1706967096082,175.48,0.00022201,2]
[313223256,1706967096117,175.48,0.00022261,2]
[313223257,1706967096146,175.48,0.00022322,2]
[313223258,1706967096173,175.48,0.00022382,2]
[313223259,1706967096206,175.48,0.00022443,2]
[313223260,1706967096703,2145.46767011,0.00021743,2]
[313223261,1706967096774,1044.36318803,0.00021853,2]
[313223262,1706967097717,732.9078269,0.00021,2]
[313223263,1706967103136,3478.83,0.00022113,2]
[313223264,1706967105695,3200.29032374,0.00021879,2]
[313223265,1706967110694,2483.67553854,0.00022114,2]
[313223266,1706967112180,562.45073141,0.00020284,2]
[313223267,1706967113859,421.31055683,0.00021886,2]
[313223268,1706967115502,500.0,0.00021901,2]
[313223269,1706967116618,624.00034444,0.00021886,2]
[313223270,1706967117710,732.9078269,0.00021,2]
[313223271,1706967119076,250.0,0.00021901,2]
[313223272,1706967123710,3200.29032374,0.00021886,2]
[313223273,1706967129512,6425.450896,0.0002239,2]
[313223274,1706967131864,535.14399494,0.00021784,2]
[313223275,1706967132915,2483.67553854,0.00022011,2]
[313223276,1706967133708,732.9078269,0.00021,2]
[313223277,1706967136188,562.45073141,0.00020196,2]
[313223278,1706967136614,624.00034444,0.00021784,2]
[313223279,1706967139300,184.46334434,0.00022402,2]